bitfinex-derivatives/quotes_SOLF0:USTF0_20250505
["timestamp","ask_amount","ask_price","bid_price","bid_amount"]
[1746433967509,23.84,146.5,146.43,28.9878963]
[1746433967707,23.92,146.53,146.43,28.9878963]
[1746433968006,6.8256,146.5,146.47,6.8265]
[1746433968515,6.8252,146.51,146.48,6.8264]
[1746433970314,6.8248,146.52,146.49,6.826]
[1746433971816,30.7443,146.53,146.5,6.8255]
[1746433972319,30.7443,146.53,146.49,6.8258]
[1746433972320,6.8247,146.52,146.49,6.8258]
[1746433973520,30.7444,146.53,146.49,6.8258]
[1746433974215,6.8247,146.52,146.49,6.8258]
[1746433976822,30.7443,146.53,146.5,6.8254]
[1746433977024,564.86,146.56,146.47,27.992]
[1746433977223,23.9,146.56,146.47,30.0347]
[1746433977420,6.8239,146.54,146.5,6.8251]
[1746433977719,23.9,146.56,146.5,6.8251]
[1746433978224,6.8241,146.54,146.5,6.8251]
[1746433978621,23.9,146.56,146.51,6.825]
[1746433979320,6.8236,146.55,146.52,6.8246]
[1746433980024,6.823,146.56,146.53,6.8238]
[1746433980420,6.823,146.56,146.51,23.9]
[1746433980615,6.823,146.56,146.52,6.8244]
[1746433980820,6.8233,146.55,146.52,6.8244]
[1746433981420,6.8233,146.55,146.51,30.7249]
[1746433983123,6.8233,146.55,146.52,6.8245]
[1746433983322,6.8215,146.59,146.52,5.1478963]
[1746433983623,23.9,146.65,146.55,5.1478963]
[1746433983820,23.9,146.65,146.59,6.8213]
[1746433984016,23.9,146.65,146.56,23.9]
[1746433984524,6.8215,146.59,146.56,23.9]
[1746433984725,29.0478963,146.65,146.56,23.9]
[1746433985223,6.8226,146.57,146.53,32.7073]
[1746433990526,6.8228,146.56,146.53,32.7073]
[1746433990826,6.8228,146.56,146.53,30.7241]
[1746433991426,6.8234,146.55,146.53,23.9]
[1746433992327,6.823,146.56,146.53,30.724]
[1746433999628,23.9,146.61,146.53,23.9]
[1746434000328,6.8222,146.58,146.54,6.8233]
[1746434000729,23.9,146.61,146.53,30.7237]
[1746434000924,2.1104,146.6,146.53,30.7237]
[1746434001733,6.823,146.56,146.53,30.7237]
[1746434001934,2.1104,146.6,146.53,23.9]
[1746434002432,6.7231,146.56,146.52,6.8245]
[1746434004931,6.7231,146.56,146.53,6.8241]
[1746434006332,6.7231,146.56,146.53,6.7241]
[1746434007545,6.8232,146.55,146.53,6.7241]
[1746434007844,6.8232,146.55,146.52,6.9244]
[1746434009346,6.823,146.56,146.53,6.8241]
[1746434014449,6.8233,146.55,146.52,6.9244]
[1746434016249,2.1104,146.6,146.52,0.1]
[1746434016449,27.9651,146.61,146.52,0.1]
[1746434016645,23.9,146.61,146.52,0.1]
[1746434016851,23.9,146.61,146.54,5.1478963]
[1746434017054,6.8211,146.6,146.56,6.8224]
[1746434017245,23.9,146.61,146.55,23.94]
[1746434017445,23.9,146.61,146.55,26.0127]
[1746434018154,23.9,146.61,146.55,23.94]
[1746434018550,23.9,146.61,146.53,8.8728]
[1746434019153,6.8228,146.56,146.53,8.8728]
[1746434019358,23.9,146.61,146.53,6.824]
[1746434020153,6.8225,146.57,146.53,6.824]
[1746434020553,6.8225,146.57,146.54,6.8236]
[1746434021857,6.8231,146.56,146.52,30.8644]
[1746434022055,6.8231,146.56,146.52,24.04]
[1746434022756,6.8231,146.56,146.53,6.8239]
[1746434025956,6.8223,146.58,146.52,24.04]
[1746434026458,3.8904,146.6,146.52,24.04]
[1746434026956,6.822,146.58,146.54,6.8233]
[1746434027859,6.822,146.58,146.55,6.823]
[1746434028358,6.822,146.58,146.54,6.8235]
[1746434029155,6.8224,146.57,146.54,6.8235]
[1746434029958,6.822,146.58,146.54,6.8235]
[1746434031258,6.822,146.58,146.55,6.8232]
[1746434032059,6.8216,146.59,146.56,6.8227]
[1746434032560,6.8219,146.58,146.55,6.823]
[1746434032860,6.8219,146.58,146.53,2.0358]
[1746434033360,6.8215,146.59,146.56,6.8227]
[1746434034157,6.821,146.6,146.57,6.8222]
[1746434035161,6.8214,146.59,146.56,6.8226]
[1746434035463,23.9,146.61,146.54,2.0872]
[1746434035657,23.9,146.61,146.53,2.0358]
[1746434035857,6.8227,146.57,146.53,8.8596]
[1746434036857,6.8228,146.56,146.53,8.8596]
[1746434037062,6.8228,146.56,146.54,6.8237]
[1746434037664,6.8228,146.56,146.53,8.8597]
[1746434041466,6.8228,146.56,146.54,6.8237]
[1746434042868,6.8225,146.57,146.54,6.8237]
[1746434043770,6.8233,146.55,146.53,2.0358]
[1746434043969,6.8233,146.55,146.52,30.8644]
[1746434047074,6.8233,146.55,146.53,6.8241]
[1746434050376,6.8229,146.56,146.53,6.8241]
[1746434052777,6.8233,146.55,146.53,6.8241]
[1746434053578,6.8233,146.55,146.52,30.8644]
[1746434056681,6.8233,146.55,146.53,6.8241]
[1746434057082,6.8233,146.55,146.52,24.04]
[1746434057378,6.8233,146.55,146.52,30.8643]
[1746434057579,23.9,146.59,146.52,0.1]
[1746434058070,6.824,146.54,146.52,0.1]
[1746434059682,3.28675252,146.57,146.52,0.1]
[1746434060077,6.8228,146.56,146.53,6.824]
[1746434060280,3.28675252,146.57,146.52,0.1]
[1746434060474,27.18675252,146.59,146.53,3.28675252]
[1746434060677,23.9,146.59,146.55,3.28675252]
[1746434060877,30.7216,146.59,146.56,6.8225]
[1746434061082,23.9,146.59,146.55,3.28675252]
[1746434061282,23.84,146.62,146.57,3.28675252]
[1746434061586,3.28675252,146.64,146.57,3.28675252]
[1746434061784,23.84,146.63,146.57,23.84]
[1746434062983,6.8203,146.62,146.59,6.8213]
[1746434065593,23.84,146.63,146.57,23.84]
[1746434066188,30.6595,146.63,146.6,6.8205]
[1746434066791,6.8195,146.63,146.6,6.8205]
[1746434067387,6.8192,146.64,146.61,6.8203]
[1746434067783,6.8192,146.64,146.57,23.84]
[1746434068078,6.8192,146.64,146.61,6.8204]
[1746434068688,6.8192,146.64,146.57,23.84]
[1746434068889,6.8192,146.64,146.58,2.1356]
[1746434069583,6.8187,146.65,146.58,7.26493708]
[1746434069786,23.82,146.66,146.58,7.26493708]
[1746434070086,6.8186,146.65,146.62,6.8196]
[1746434072790,27.9513,146.7,146.59,4.169]
[1746434072996,25.9653,146.7,146.62,23.82]
[1746434073692,6.8175,146.68,146.64,6.8188]
[1746434074087,6.8175,146.68,146.65,6.8184]
[1746434075893,6.8168,146.69,146.66,6.8181]
[1746434076093,23.82,146.7,146.66,6.8181]
[1746434076294,564.12,146.73,146.66,6.8181]
[1746434076796,2.0137,146.76,146.67,6.8175]
[1746434077093,23.82,146.75,146.67,6.8175]
[1746434077396,6.8161,146.71,146.67,6.8175]
[1746434079096,6.8163,146.7,146.67,6.8175]
[1746434081601,5.12933708,146.73,146.64,4.089]
[1746434083190,6.8175,146.68,146.65,6.8183]
[1746434088500,6.8179,146.67,146.64,10.9079]
[1746434088698,23.86,146.71,146.64,4.089]
[1746434090205,6.8173,146.68,146.65,6.8185]
[1746434091605,6.8173,146.68,146.64,10.9078]
[1746434091802,6.8177,146.67,146.64,10.9078]
[1746434093405,6.8177,146.67,146.64,6.8188]
[1746434093601,5.12933708,146.7,146.63,23.82]
[1746434093802,7.11123708,146.7,146.6,23.86]
[1746434094205,6.8189,146.65,146.62,6.8197]
[1746434094803,3.9463,146.69,146.63,6.8192]
[1746434095003,25.8419,146.7,146.6,23.86]
[1746434095504,6.8167,146.69,146.64,6.8187]
[1746434096405,6.8172,146.68,146.64,6.8187]
[1746434096601,25.8419,146.7,146.64,6.8187]
[1746434098105,6.8174,146.68,146.64,6.8187]
[1746434100807,6.8169,146.69,146.65,6.8182]
[1746434101011,23.86,146.7,146.64,23.86]
[1746434101207,23.86,146.73,146.64,23.86]
[1746434101407,30.6745,146.74,146.7,6.8162]
[1746434103113,30.6745,146.74,146.69,6.8165]
[1746434103314,6.815,146.73,146.69,6.8165]
[1746434103815,6.8154,146.72,146.68,6.8171]
[1746434104111,23.86,146.74,146.65,1.9728]
[1746434104614,23.86,146.74,146.67,5.12933708]
[1746434104816,23.86,146.74,146.68,23.86]
[1746434105510,6.8142,146.75,146.68,23.86]
[1746434106118,6.8136,146.76,146.72,6.8152]
[1746434106613,6.8136,146.76,146.72,6.8149]
[1746434106822,30.6732,146.77,146.7,5.12933708]
[1746434107318,23.86,146.81,146.7,5.12933708]
[1746434107518,23.86,146.81,146.7,7.24563708]
[1746434107815,6.8133,146.77,146.73,6.8146]
[1746434108119,23.86,146.81,146.72,23.86]
[1746434108315,6.8132,146.77,146.72,30.6753]
[1746434108821,6.8135,146.76,146.72,30.6753]
[1746434109521,23.86,146.81,146.73,6.8145]
[1746434109522,6.8131,146.77,146.73,6.8145]
[1746434110023,23.86,146.81,146.73,6.8145]
[1746434110622,6.8133,146.77,146.73,6.8145]
[1746434112522,6.8127,146.78,146.72,28.98933708]
[1746434113124,6.8122,146.79,146.72,28.98933708]
[1746434113322,23.86,146.81,146.72,28.98933708]
[1746434113524,30.4787,146.84,146.75,5.12933708]
[1746434113725,6.8115,146.81,146.76,24.34]
[1746434114326,6.8108,146.82,146.76,24.34]
[1746434114624,26.3411,146.84,146.76,24.34]
[1746434115120,6.8113,146.81,146.77,6.8127]
[1746434115316,31.47043708,146.84,146.76,24.34]
[1746434115515,31.47043708,146.84,146.72,29.46933708]
[1746434115721,6.8131,146.77,146.73,6.8145]
[1746434116026,24.34,146.8,146.72,29.46933708]
[1746434116327,6.8128,146.78,146.72,29.46933708]
[1746434118227,6.8128,146.78,146.74,6.814]
[1746434118930,6.8121,146.79,146.75,6.8138]
[1746434119327,24.34,146.8,146.72,29.46933708]
[1746434120229,6.8129,146.78,146.74,6.8143]
[1746434121428,6.8129,146.78,146.75,6.8138]
[1746434121629,6.8122,146.79,146.75,6.8138]
[1746434121929,24.34,146.8,146.75,6.8138]
[1746434122131,6.8126,146.78,146.74,6.8142]
[1746434122630,6.8126,146.78,146.72,29.46933708]
[1746434123131,6.8126,146.78,146.74,6.814]
[1746434124532,24.34,146.8,146.72,29.46933708]
[1746434124737,24.32,146.83,146.75,5.12933708]
[1746434125029,6.8113,146.81,146.77,6.8127]
[1746434126235,6.8113,146.81,146.78,6.8125]
[1746434127530,6.8113,146.81,146.77,6.8128]
[1746434128335,6.8113,146.81,146.78,6.8125]
[1746434128537,6.8108,146.82,146.76,26.3116]
[1746434128737,6.8108,146.82,146.76,30.2847]
[1746434129136,6.8108,146.82,146.79,6.812]
[1746434129436,6.8112,146.81,146.76,30.2847]
[1746434130037,6.8109,146.82,146.78,6.8122]
[1746434130738,6.8112,146.81,146.78,6.8122]
[1746434131533,6.8109,146.82,146.78,6.8122]
[1746434131738,6.8109,146.82,146.78,6.9122]
[1746434133436,6.8112,146.81,146.78,6.9122]
[1746434133741,24.32,146.83,146.78,6.9122]
[1746434134143,6.8108,146.82,146.78,6.9122]
[1746434134340,6.8108,146.82,146.79,6.812]
[1746434134539,29.44933708,146.86,146.78,0.1]
[1746434134742,24.32,146.86,146.78,0.1]
[1746434135544,6.8105,146.83,146.8,6.8115]
[1746434137540,6.8097,146.85,146.81,6.811]
[1746434137747,24.32,146.86,146.81,6.811]
[1746434138346,6.8101,146.84,146.78,5.22933708]
[1746434138747,6.8101,146.84,146.8,6.8112]
[1746434138943,6.8101,146.84,146.78,5.22933708]
[1746434140449,6.8101,146.84,146.81,6.8111]
[1746434144054,6.8093,146.85,146.82,6.8105]
[1746434144753,6.8093,146.85,146.8,24.52]
[1746434144754,24.32,146.86,146.8,24.52]
[1746434145452,24.32,146.86,146.78,0.1]
[1746434145855,6.8104,146.83,146.79,6.8119]
[1746434147452,24.32,146.86,146.8,6.8116]
[1746434147652,24.32,146.86,146.78,0.1]
[1746434147954,24.32,146.86,146.79,6.8117]
[1746434148150,24.32,146.86,146.78,0.1]
[1746434148553,24.32,146.86,146.79,6.812]
[1746434149655,6.8106,146.83,146.79,6.812]
[1746434151660,24.32,146.86,146.78,6.9122]
[1746434153260,6.8113,146.81,146.78,6.9122]
[1746434154862,24.32,146.86,146.78,0.1]
[1746434155057,4.1302,146.85,146.78,0.1]
[1746434155363,6.8121,146.79,146.78,0.1]
[1746434159064,6.8118,146.8,146.78,0.1]
[1746434159259,24.52,146.82,146.78,0.1]
[1746434159665,31.3308,146.82,146.79,6.812]
[1746434159866,31.3308,146.82,146.78,0.1]
[1746434160060,24.52,146.82,146.78,0.1]
[1746434160667,2.0591,146.84,146.78,0.1]
[1746434160668,28.6502,146.85,146.78,0.1]
[1746434161064,6.8109,146.82,146.78,0.1]
[1746434161766,6.8109,146.82,146.79,6.812]
[1746434163265,6.8104,146.83,146.8,6.8115]
[1746434163468,28.6502,146.85,146.78,0.1]
[1746434163670,6.8105,146.83,146.79,6.8116]
[1746434163863,28.6502,146.85,146.78,0.1]
[1746434164067,24.52,146.85,146.78,29.74933708]
[1746434165270,6.8102,146.83,146.8,6.8113]
[1746434167076,6.8102,146.83,146.79,6.8119]
[1746434168179,24.52,146.85,146.78,29.74933708]
[1746434168365,24.52,146.85,146.78,0.1]
[1746434168884,24.52,146.85,146.78,6.9124]
[1746434169577,6.8111,146.82,146.78,6.9124]
[1746434172889,6.8111,146.81,146.78,6.9124]
[1746434174385,6.8105,146.83,146.79,6.8118]
[1746434174885,24.52,146.85,146.79,6.8118]
[1746434175078,6.8107,146.82,146.79,6.8118]
[1746434180384,24.52,146.85,146.78,6.9124]
[1746434180892,6.811,146.82,146.78,6.9124]
[1746434181193,24.52,146.85,146.78,0.1]
[1746434181491,4.0343,146.84,146.78,0.1]
[1746434182393,6.8121,146.79,146.78,0.1]
[1746434186295,6.8118,146.8,146.78,0.1]
[1746434187796,6.7118,146.8,146.78,0.1]
[1746434196005,31.1912,146.81,146.78,6.9125]
[1746434196502,6.8112,146.81,146.78,6.9125]
[1746434196702,6.8112,146.81,146.78,0.1]
[1746434198401,6.8117,146.8,146.78,0.1]
[1746434198902,6.8115,146.81,146.78,0.1]
[1746434200103,6.8119,146.8,146.78,0.1]
[1746434201304,6.8121,146.79,146.78,0.1]
[1746434210511,6.8118,146.8,146.78,0.1]
[1746434211617,6.8121,146.79,146.78,0.1]
[1746434222415,24.2,146.82,146.78,0.1]
[1746434223318,6.8116,146.81,146.78,0.1]
[1746434223619,6.8116,146.81,146.78,3.37514253]
[1746434226121,6.8117,146.8,146.78,3.37514253]
[1746434228417,2.143,146.86,146.78,3.37514253]
[1746434228721,2.143,146.86,146.8,3.27514253]
[1746434229517,6.81,146.84,146.81,6.8111]
[1746434229825,6.81,146.84,146.8,3.27514253]
[1746434230121,2.143,146.86,146.8,3.27514253]
[1746434230521,3.27514253,146.85,146.8,3.27514253]
[1746434230824,6.8111,146.82,146.8,3.27514253]
[1746434234225,6.8104,146.83,146.8,3.27514253]
[1746434234826,6.8108,146.82,146.8,3.27514253]
[1746434235126,3.27514253,146.85,146.8,3.27514253]
[1746434235522,3.27514253,146.85,146.79,3.27514253]
[1746434237827,6.8113,146.81,146.79,3.27514253]
[1746434238826,6.8113,146.81,146.78,10.18744253]
[1746434239728,6.8117,146.8,146.78,0.1]
[1746434240028,3.27514253,146.83,146.78,0.1]
[1746434240222,6.8121,146.79,146.78,0.1]
[1746434244926,6.8121,146.79,146.73,3.27514253]
[1746434244927,3.27514253,146.79,146.73,3.27514253]
[1746434245127,27.41514253,146.79,146.72,24.38113]
[1746434245329,27.41514253,146.79,146.73,10.08994253]
[1746434246234,6.8133,146.77,146.73,10.08994253]
[1746434246645,27.41514253,146.79,146.73,3.27514253]
[1746434247046,3.27514253,146.77,146.72,0.24113]
[1746434247334,6.8143,146.75,146.72,0.24113]
[1746434247937,3.27514253,146.77,146.72,0.24113]
[1746434249236,6.8143,146.75,146.72,0.24113]
[1746434249935,6.8136,146.76,146.72,0.24113]
[1746434250137,27.41514253,146.79,146.73,3.27514253]
[1746434250435,6.8143,146.75,146.73,3.27514253]
[1746434252039,6.8137,146.76,146.73,3.27514253]
[1746434253742,6.814,146.75,146.73,3.27514253]
[1746434257439,6.8136,146.76,146.73,3.27514253]
[1746434259744,6.814,146.75,146.73,3.27514253]
[1746434261245,6.8136,146.76,146.73,3.27514253]
[1746434263745,6.8136,146.76,146.73,10.08994253]
[1746434264234,6.8136,146.76,146.73,3.27514253]
[1746434264944,6.8136,146.76,146.73,10.08994253]
[1746434266344,27.41514253,146.79,146.73,10.08994253]
[1746434266345,6.8132,146.77,146.74,6.8144]
[1746434266644,6.8132,146.77,146.75,3.27514253]
[1746434266849,6.8135,146.76,146.75,3.27514253]
[1746434269050,6.8131,146.77,146.75,3.27514253]
[1746434270752,6.8135,146.76,146.75,3.27514253]
[1746434271953,6.8139,146.75,146.73,3.27514253]
[1746434273758,6.8139,146.75,146.73,3.77514253]
[1746434274158,27.41514253,146.79,146.73,3.77514253]
[1746434274357,24.14,146.79,146.75,3.27514253]
[1746434274859,6.8126,146.78,146.75,3.27514253]
[1746434275255,24.14,146.79,146.75,3.27514253]
[1746434275762,6.8126,146.78,146.75,3.27514253]
[1746434276259,24.14,146.79,146.75,3.27514253]
[1746434276458,6.8126,146.78,146.75,3.27514253]
[1746434276858,6.8131,146.77,146.75,3.27514253]
[1746434277359,6.8135,146.76,146.75,3.27514253]
[1746434277564,24.14,146.79,146.73,28.17514253]
[1746434277963,6.8138,146.76,146.73,28.17514253]
[1746434278159,24.14,146.79,146.73,28.17514253]
[1746434278465,6.8144,146.74,146.73,28.17514253]
[1746434282466,6.8144,146.74,146.73,3.77514253]
[1746434285976,6.8144,146.74,146.73,4.27514253]
[1746434291076,27.41514253,146.79,146.73,4.27514253]
[1746434291475,24.14,146.79,146.73,4.27514253]
[1746434291677,24.14,146.79,146.75,3.27514253]
[1746434292175,6.8128,146.78,146.75,3.27514253]
[1746434292378,24.14,146.79,146.75,3.27514253]
[1746434293168,24.4,146.82,146.77,3.27514253]
[1746434293369,6.8104,146.83,146.79,3.27514253]
[1746434293574,6.8104,146.83,146.81,3.27514253]
[1746434294579,6.8107,146.82,146.81,3.27514253]
[1746434295675,6.8107,146.82,146.78,36.3268366]
[1746434295973,24.4,146.85,146.78,36.3268366]
[1746434295974,6.8112,146.81,146.78,36.3268366]
[1746434296178,6.8112,146.81,146.78,29.5144366]
[1746434296879,6.8112,146.81,146.78,36.3268366]
[1746434301280,24.4,146.85,146.78,29.5144366]
[1746434301584,24.3,146.88,146.81,5.1144366]
[1746434302284,6.8097,146.85,146.82,6.8106]
[1746434305985,6.8089,146.86,146.83,6.8102]
[1746434306182,6.8089,146.86,146.81,5.1144366]
[1746434306484,6.8096,146.85,146.82,6.8105]
[1746434307886,6.8096,146.85,146.81,11.9254366]
[1746434308489,6.8096,146.85,146.82,6.8106]
[1746434309088,6.8096,146.85,146.81,11.9254366]
[1746434309290,6.8099,146.84,146.81,11.9254366]
[1746434310484,24.3,146.88,146.79,6.0085]
[1746434310891,24.3,146.88,146.79,3.9043]
[1746434311389,6.8101,146.84,146.8,6.8116]
[1746434313193,6.8103,146.83,146.8,6.8116]
[1746434315193,24.3,146.88,146.79,10.7161]
[1746434315595,24.3,146.88,146.78,29.5144366]
[1746434316089,6.8114,146.81,146.78,24.4]
[1746434316299,24.3,146.84,146.78,24.4]
[1746434317196,6.8118,146.8,146.78,24.4]
[1746434317397,24.3,146.84,146.78,24.4]
[1746434318390,24.3,146.84,146.78,29.5144366]
[1746434318695,31.11,146.84,146.8,6.8113]
[1746434318896,6.81,146.84,146.8,6.8113]
[1746434319592,6.8093,146.85,146.78,29.5144366]
[1746434320201,6.8093,146.85,146.81,6.8107]
[1746434321304,6.8093,146.85,146.8,6.8115]
[1746434321604,6.8093,146.85,146.78,29.5144366]
[1746434321900,24.3,146.87,146.78,29.5144366]
[1746434322202,6.8094,146.85,146.78,29.5144366]
[1746434322701,6.8094,146.85,146.81,6.8107]
[1746434323794,6.8098,146.84,146.81,6.8107]
[1746434324202,6.8091,146.86,146.82,24.3]
[1746434325203,6.8091,146.86,146.83,6.8099]
[1746434326805,24.3,146.9,146.83,6.8099]
[1746434327803,6.809,146.86,146.83,6.8099]
[1746434332807,24.3,146.9,146.84,6.8095]
[1746434333406,6.8083,146.88,146.85,6.8093]
[1746434334308,6.8083,146.88,146.84,6.8097]
[1746434334812,6.8084,146.87,146.84,6.8097]
[1746434335509,6.8081,146.88,146.84,6.8097]
[1746434335707,24.3,146.9,146.84,6.8097]
[1746434335912,24.3,146.9,146.82,26.3446]
[1746434336111,6.8091,146.86,146.82,26.3446]
[1746434336308,6.8091,146.86,146.82,33.1549]
[1746434336618,6.8091,146.86,146.82,26.3446]
[1746434339317,6.8091,146.86,146.82,33.1549]
[1746434340119,6.8091,146.86,146.83,6.81]
[1746434340319,6.8086,146.87,146.83,6.81]
[1746434340721,6.8086,146.87,146.82,26.3446]
[1746434340922,6.8086,146.87,146.84,6.8097]
[1746434350429,6.8077,146.89,146.82,26.3446]
[1746434350623,24.16,146.93,146.84,5.1144366]
[1746434350824,544.3944366,146.95,146.84,5.1144366]
[1746434351023,28.2382,146.94,146.84,5.1144366]
[1746434351227,6.8074,146.9,146.86,6.8085]
[1746434351427,28.2382,146.94,146.86,30.9685]
[1746434351630,6.8073,146.9,146.86,30.9685]
[1746434351833,6.8073,146.9,146.87,3.2703352]
[1746434352433,6.8073,146.9,146.87,10.0785352]
[1746434352632,6.8064,146.92,146.89,3.2703352]
[1746434352932,31.5085352,146.94,146.89,3.2703352]
[1746434353528,28.2382,146.94,146.89,3.2703352]
[1746434353735,26.1817,146.94,146.87,5.10822658]
[1746434354129,6.8062,146.92,146.89,6.8072]
[1746434354331,24.16,146.94,146.89,6.8072]
[1746434354935,6.8061,146.92,146.89,6.8072]
[1746434355130,24.16,146.94,146.9,6.8069]
[1746434355433,24.16,146.94,146.87,7.08932658]
[1746434355829,6.8059,146.93,146.89,6.8073]
[1746434356035,24.16,146.94,146.89,6.8073]
[1746434357336,6.8061,146.92,146.89,6.8073]
[1746434358436,6.8061,146.92,146.88,6.8077]
[1746434358636,24.16,146.94,146.87,7.08932658]
[1746434358836,24.16,146.94,146.87,5.10822658]
[1746434359038,24.16,146.94,146.86,30.9686]
[1746434359430,24.16,146.94,146.86,24.16]
[1746434360032,3.942,146.93,146.86,24.16]
[1746434360739,6.8082,146.88,146.86,24.16]
[1746434361832,6.8076,146.89,146.86,24.16]
[1746434362936,6.8079,146.88,146.86,24.16]
[1746434363941,6.8076,146.89,146.86,24.16]
[1746434364840,6.8076,146.89,146.86,30.9688]
[1746434370743,6.8071,146.9,146.86,30.9688]
[1746434371346,6.8071,146.9,146.87,6.8082]
[1746434375746,6.8071,146.9,146.88,3.2700572]
[1746434377046,6.8067,146.91,146.88,3.2700572]
[1746434377345,6.8067,146.91,146.88,10.0779572]
[1746434377548,24.16,146.94,146.9,3.2700572]
[1746434377746,6.8063,146.92,146.9,3.2700572]
[1746434378346,6.8059,146.93,146.9,3.2700572]
[1746434379749,6.8059,146.93,146.89,6.807]
[1746434380046,6.8061,146.92,146.89,6.807]
[1746434382350,24.16,146.94,146.9,6.8068]
[1746434383648,6.8058,146.93,146.9,6.8068]
[1746434384348,6.8058,146.93,146.89,6.8072]
[1746434384740,6.8058,146.93,146.87,9.18785869]
[1746434384949,6.8058,146.93,146.89,6.807]
[1746434385250,6.8058,146.93,146.87,9.18785869]
[1746434386051,6.8061,146.92,146.87,9.18785869]
[1746434386245,6.8061,146.92,146.89,6.8072]
[1746434389647,6.8057,146.93,146.89,6.8072]
[1746434390255,6.8057,146.93,146.9,6.8069]
[1746434393257,24.02,146.97,146.9,29.02775869]
[1746434393555,23.92,147.0,146.9,29.02775869]
[1746434393753,6.8039,146.97,146.93,6.8053]
[1746434394460,6.8039,146.97,146.9,29.02775869]
[1746434397259,6.8039,146.97,146.93,6.8053]
[1746434398459,6.8039,146.97,146.94,6.805]
[1746434399558,6.8039,146.97,146.93,6.8054]
[1746434400763,6.8042,146.96,146.93,6.8054]
[1746434400951,6.8042,146.96,146.92,6.8058]
[1746434401862,6.8042,146.96,146.93,6.8054]
[1746434403762,6.8042,146.96,146.95,3.26709593]
[1746434409075,6.8042,146.96,146.92,6.8059]
[1746434409271,3.26709593,146.99,146.92,3.26709593]
[1746434409466,3.26709593,146.97,146.92,3.26709593]
[1746434409866,23.92,147.0,146.9,30.7267]
[1746434410375,6.8054,146.94,146.9,30.7267]
[1746434413478,6.8054,146.94,146.9,31.2267]
[1746434413876,23.92,147.0,146.9,24.42]
[1746434414277,5.10693122,146.98,146.9,0.5]
[1746434414482,6.8065,146.91,146.9,0.5]
[1746434499052,23.92,146.93,146.9,3.77037553]
[1746434499247,23.92,146.97,146.92,3.27037553]
[1746434499850,6.8049,146.95,146.92,3.27037553]
[1746434500051,23.92,146.97,146.92,3.27037553]
[1746434500453,6.8051,146.95,146.92,3.27037553]
[1746434501353,6.8054,146.94,146.92,3.27037553]
[1746434503254,6.8056,146.93,146.92,3.27037553]
[1746434504458,6.8052,146.94,146.92,3.27037553]
[1746434518876,23.92,146.97,146.92,3.27037553]
[1746434519673,6.8047,146.95,146.92,3.27037553]
[1746434519870,23.92,146.97,146.92,3.27037553]
[1746434521569,6.8051,146.95,146.92,3.27037553]
[1746434522465,6.8044,146.96,146.92,3.27037553]
[1746434523775,6.8047,146.95,146.92,3.27037553]
[1746434536686,6.8052,146.94,146.92,3.27037553]
[1746434537488,23.92,146.97,146.91,3.27037553]
[1746434537692,3.27037553,146.96,146.9,0.5]
[1746434539585,6.806,146.93,146.9,0.5]
[1746434539785,3.27037553,146.96,146.9,0.5]
[1746434543194,6.8056,146.93,146.9,0.5]
[1746434543698,6.8056,146.93,146.91,3.27037553]
[1746434544591,6.8043,146.96,146.91,3.27037553]
[1746434544895,23.92,146.97,146.95,3.27037553]